bitfinex/quotes_SOLUSD_20220302
["timestamp","ask_amount","ask_price","bid_price","bid_amount"]
[1646243817829,1.35322768,101.68,101.59,168.53]
[1646243818032,9.39962588,101.69,101.61,156.55]
[1646243818232,9.39962588,101.69,101.62,73.0124]
[1646243818430,9.39962588,101.69,101.62,73.2624]
[1646243818630,9.39962588,101.69,101.62,73.0124]
[1646243819034,4.00944671,101.7,101.62,73.0124]
[1646243819230,2.65621903,101.7,101.62,73.0124]
[1646243819632,2.65621903,101.7,101.62,171.3124]
[1646243819831,2.65621903,101.7,101.62,73.0124]
[1646243820036,10.58846356,101.69,101.62,73.0124]
[1646243820232,10.58846356,101.69,101.63,98.3]
[1646243820433,2.65621903,101.7,101.63,14.7616]
[1646243820632,1.35322768,101.71,101.63,26.7416]
[1646243820833,1.35322768,101.72,101.63,26.7416]
[1646243821034,4.0162535,101.73,101.63,26.7416]
[1646243821233,2.66302582,101.73,101.63,125.0416]
[1646243821436,2.66302582,101.73,101.64,46.95603635]
[1646243821637,2.66302582,101.73,101.66,14.7567]
[1646243822736,2.66302582,101.73,101.64,47.20603635]
[1646243822939,4.37728151,101.73,101.64,61.71523635]
[1646243823339,1.71425569,101.73,101.64,61.71523635]
[1646243823539,2.66302582,101.72,101.64,61.71523635]
[1646243823941,1.71425569,101.71,101.64,61.71523635]
[1646243824141,2.81417173,101.7,101.64,61.71523635]
[1646243825045,1.71425569,101.71,101.64,61.71523635]
[1646243825344,1.71425569,101.73,101.64,73.69523635]
[1646243826153,11.15191422,101.72,101.64,73.69523635]
[1646243826957,1.71425569,101.73,101.64,171.99523635]
[1646243827159,1.71425569,101.73,101.64,230.24523635]
[1646243827559,1.71425569,101.73,101.64,73.69523635]
[1646243827956,14.25870308,101.72,101.64,73.69523635]
[1646243828759,2.66302582,101.72,101.64,230.24523635]
[1646243828959,29.6112,101.74,101.64,230.24523635]
[1646243829264,6.458,101.74,101.64,230.24523635]
[1646243829560,6.458,101.74,101.68,171.3009]
[1646243829763,6.458,101.74,101.69,158.81822605]
[1646243830062,6.458,101.74,101.69,217.31822605]
[1646243830459,180.17169521,101.77,101.71,58.25]
[1646243830661,180.17169521,101.77,101.71,168.53]
[1646243830862,3.932,101.81,101.71,168.53]
[1646243831063,3.93,101.83,101.73,156.55]
[1646243831264,3.93,101.83,101.74,168.28]
[1646243831464,15.30623618,101.83,101.75,149.28251169]
[1646243831663,15.30623618,101.83,101.75,51.23251169]
[1646243831865,11.37623618,101.83,101.76,14.7412]
[1646243832061,11.37623618,101.83,101.76,14.9912]
[1646243833262,13.09253986,101.83,101.75,11.73]
[1646243833461,3.928,101.82,101.72,24.2468]
[1646243833663,43.02850264,101.82,101.72,35.9768]
[1646243833862,1.71630368,101.81,101.72,35.9768]
[1646243834065,22.11188729,101.81,101.72,35.9768]
[1646243834262,22.11188729,101.81,101.72,90.11420315]
[1646243834561,0.42344867,101.79,101.72,90.11420315]
[1646243835166,0.42344867,101.79,101.72,104.86220315]
[1646243835465,0.42344867,101.79,101.72,80.61540315]
[1646243835864,71.44054907,101.82,101.72,80.61540315]
[1646243836264,67.51254907,101.82,101.72,80.61540315]
[1646243836465,71.44254907,101.82,101.72,80.61540315]
[1646243836665,71.44254907,101.82,101.72,80.86540315]
[1646243836867,10.33445873,101.81,101.72,80.86540315]
[1646243838670,10.33445873,101.81,101.73,58.25]
[1646243838869,10.33445873,101.81,101.74,14.7458]
[1646243841770,10.33445873,101.81,101.74,113.0458]
[1646243842470,10.33445873,101.81,101.74,14.7458]
[1646243842674,69.31734539,101.83,101.74,14.7458]
[1646243842870,69.31734539,101.83,101.74,113.0458]
[1646243843070,69.31734539,101.83,101.74,14.7458]
[1646243843270,14.7466,101.82,101.74,14.7458]
[1646243843671,25.19867979,101.82,101.74,14.7458]
[1646243844170,25.19867979,101.82,101.74,113.0458]
[1646243844771,25.19867979,101.82,101.74,14.7458]
[1646243844973,14.7481,101.81,101.73,58.25]
[1646243845175,1.71630368,101.81,101.72,68.88520315]
[1646243845472,3.78034907,101.81,101.72,68.88520315]
[1646243845673,5.84439446,101.81,101.72,68.88520315]
[1646243845874,1.71630368,101.8,101.72,112.38740315]
[1646243846073,4.12809078,101.81,101.72,210.68740315]
[1646243846475,5.84439446,101.81,101.72,112.38740315]
[1646243846675,14.7497,101.8,101.72,54.13740315]
[1646243847073,16.46600368,101.8,101.72,54.38740315]
[1646243848078,14.7497,101.8,101.72,54.38740315]
[1646243848674,14.7497,101.8,101.72,210.93740315]
[1646243848875,14.7497,101.8,101.72,112.63740315]
[1646243849876,14.7497,101.8,101.72,112.38740315]
[1646243850077,1.71630368,101.79,101.69,30.412]
[1646243850282,1.71630368,101.79,101.69,18.932]
[1646243850575,1.71630368,101.79,101.69,15.002]
[1646243850776,1.71630368,101.79,101.69,113.302]
[1646243850978,1.34760506,101.78,101.7,59.84155561]
[1646243851179,16.10030506,101.78,101.7,60.09155561]
[1646243851378,1.34760506,101.78,101.7,59.84155561]
[1646243851578,3.06390874,101.78,101.7,59.84155561]
[1646243852280,3.06390874,101.78,101.7,118.09155561]
[1646243853380,3.06390874,101.78,101.71,98.3]
[1646243853580,14.7519,101.79,101.71,156.8]
[1646243853783,24.95070368,101.8,101.71,172.461]
[1646243854181,24.95070368,101.8,101.71,168.53]
[1646243854581,36.47940499,101.8,101.71,183.28]
[1646243856087,38.54345038,101.8,101.71,183.28]
[1646243856286,27.01474907,101.8,101.71,183.28]
[1646243856487,23.2344,101.8,101.71,187.211]
[1646243856789,112.9,101.82,101.75,156.55]
[1646243856988,112.9,101.82,101.75,156.8]
[1646243857386,112.9,101.82,101.77,98.3]
[1646243857586,112.9,101.82,101.77,156.55]
[1646243857787,1.35322768,101.83,101.77,171.5414]
[1646243857987,24.47422768,101.85,101.77,171.5414]
[1646243858387,1.35322768,101.84,101.77,171.5414]
[1646243858587,3.41727307,101.84,101.77,171.5414]
[1646243858786,8.56502115,101.83,101.77,171.5414]
[1646243858987,3.41727307,101.84,101.77,171.5414]
[1646243859211,2.06404539,101.84,101.77,171.5414]
[1646243859411,1.35322768,101.84,101.77,171.5414]
[1646243859611,1.35322768,101.84,101.77,73.2414]
[1646243859813,3.0653461,101.84,101.77,0.25]
[1646243860012,13.35927942,101.83,101.77,0.25]
[1646243860412,14.7125071,101.83,101.77,0.25]
[1646243860816,14.7125071,101.83,101.76,150.41383672]
[1646243861012,14.7125071,101.83,101.76,52.11383672]
[1646243861213,14.7125071,101.83,101.76,208.66383672]
[1646243861514,14.7125071,101.83,101.76,52.11383672]
[1646243861813,1.35322768,101.82,101.76,52.11383672]
[1646243862214,1.35322768,101.82,101.76,0.25]
[1646243862413,1.35322768,101.82,101.73,86.0858]
[1646243862613,16.10132768,101.81,101.72,3.93]
[1646243862813,5.48131846,101.81,101.71,3.93]
[1646243863013,3.0653461,101.8,101.71,3.93]
[1646243863213,0.50445082,101.79,101.72,48.7885957]
[1646243863612,0.50445082,101.79,101.72,49.0385957]
[1646243864112,0.50445082,101.79,101.72,162.0863957]
[1646243864313,0.50445082,101.79,101.72,220.3363957]
[1646243864514,0.50445082,101.79,101.72,122.0363957]
[1646243865315,0.50445082,101.79,101.72,63.7863957]
[1646243865515,1.8576785,101.79,101.72,162.0863957]
[1646243865715,1.8576785,101.79,101.72,49.0385957]
[1646243866416,1.8576785,101.79,101.71,3.93]
[1646243866616,1.35322768,101.78,101.71,3.93]
[1646243866815,5.48131846,101.78,101.71,3.93]
[1646243867016,3.0653461,101.78,101.71,3.93]
[1646243867217,4.12809078,101.77,101.71,3.93]
[1646243867416,18.88189078,101.77,101.71,3.93]
[1646243867617,20.23511846,101.77,101.71,3.93]
[1646243868216,21.94723688,101.77,101.71,3.93]
[1646243868619,17.8191461,101.77,101.71,3.93]
[1646243869722,10.09790665,101.75,101.71,3.93]
[1646243872120,16.10842768,101.76,101.71,3.93]
[1646243872322,5.48131846,101.77,101.71,3.93]
[1646243872523,1.35322768,101.77,101.71,3.93]
[1646243872821,1.35322768,101.77,101.71,4.18]
[1646243873423,59.78724101,101.78,101.71,4.18]
[1646243874423,63.91533179,101.78,101.71,4.18]
[1646243875625,1.35322768,101.77,101.71,0.25]
[1646243875825,1.35322768,101.77,101.69,216.17726022]
[1646243877528,3.0653461,101.77,101.68,22.7719]
[1646243877727,5.48131846,101.76,101.65,78.5617]
[1646243877926,5.28522768,101.75,101.63,46.8503]
[1646243878129,1.35322768,101.73,101.63,46.8503]
[1646243878427,14.7633,101.71,101.64,57.50978808]
[1646243879626,4.67867152,101.72,101.64,156.05978808]
[1646243879827,4.67867152,101.72,101.64,155.80978808]
[1646243880432,4.67867152,101.72,101.64,214.05978808]
[1646243880629,0.74467152,101.72,101.64,214.05978808]
[1646243880828,50.96795212,101.74,101.64,214.05978808]
[1646243881030,47.90294539,101.74,101.64,214.05978808]
[1646243881430,45.8389,101.74,101.64,214.30978808]
[1646243881630,45.8389,101.74,101.67,156.55]
[1646243881826,54.1407564,101.74,101.68,43.38318466]
[1646243882027,54.1407564,101.74,101.68,43.63318466]
[1646243882426,54.1407564,101.74,101.68,141.93318466]
[1646243882727,31.0143564,101.74,101.68,141.93318466]
[1646243882926,21.96174411,101.76,101.68,200.18318466]
[1646243883928,9.08159467,101.75,101.68,200.18318466]
[1646243884527,11.14564006,101.75,101.68,200.18318466]
[1646243885529,11.14564006,101.75,101.68,43.63318466]
[1646243886431,2.06404539,101.75,101.68,101.88318466]
[1646243886733,1.35322768,101.76,101.69,156.55]
[1646243886932,72.18432768,101.77,101.69,156.8]
[1646243887532,82.00266347,101.77,101.69,156.8]
[1646243890334,84.06670886,101.77,101.69,156.8]
[1646243890536,1.35322768,101.76,101.69,171.5513]
[1646243890836,48.68552768,101.77,101.69,171.5513]
[1646243891436,1.35322768,101.78,101.71,156.55]
[1646243891637,1.35322768,101.78,101.73,98.3]
[1646243891839,1.35322768,101.79,101.73,98.55]
[1646243892236,1.35322768,101.79,101.73,156.8]
[1646243892437,1.35322768,101.79,101.75,98.3]
[1646243892638,1.35322768,101.81,101.75,171.5427]
[1646243892838,47.90062768,101.82,101.75,171.5427]
[1646243893037,1.35322768,101.82,101.75,171.5427]
[1646243893238,10.42662907,101.81,101.76,107.12991077]
[1646243893440,1.35322768,101.82,101.76,205.67991077]
[1646243894038,1.35322768,101.82,101.76,58.5]
[1646243895040,1.35322768,101.82,101.76,104.62835718]
[1646243895041,10.41410561,101.82,101.76,104.62835718]
[1646243895841,10.41410561,101.82,101.76,202.92835718]
[1646243896041,1.35322768,101.82,101.76,104.62835718]
[1646243896442,1.35322768,101.82,101.76,46.37835718]
[1646243897051,10.22129177,101.81,101.76,46.37835718]
[1646243897249,1.35322768,101.82,101.76,46.37835718]
[1646243897450,1.35322768,101.82,101.76,202.92835718]
[1646243897950,1.35322768,101.82,101.76,104.62835718]
[1646243898249,1.35322768,101.82,101.76,202.92835718]
[1646243899252,1.35322768,101.83,101.76,202.92835718]
[1646243900253,2.768e-05,101.85,101.8,156.55]
[1646243900486,189.64401734,101.9,101.8,168.53]
[1646243900686,130.2923597,101.91,101.82,156.55]
[1646243900885,130.2923597,101.91,101.82,156.8]
[1646243901284,8.3683052,101.9,101.84,98.3]
[1646243904085,8.3683052,101.9,101.84,156.55]
[1646243904287,8.3683052,101.9,101.84,58.25]
[1646243904586,8.3683052,101.9,101.84,156.55]
[1646243906490,8.3683052,101.9,101.82,0.25]
[1646243906689,8.3683052,101.9,101.76,8.009]
[1646243906892,1.71446396,101.89,101.79,36.4773]
[1646243907492,1.71446396,101.89,101.8,141.65327042]
[1646243907993,14.7378,101.88,101.8,141.65327042]
[1646243908189,14.7378,101.88,101.8,200.15327042]
[1646243908590,14.7378,101.88,101.8,101.85327042]
[1646243910496,14.7378,101.88,101.8,200.15327042]
[1646243910797,1.71446396,101.89,101.8,200.15327042]
[1646243910995,1.71446396,101.89,101.8,211.88327042]
[1646243912399,1.71446396,101.91,101.82,156.55]
[1646243912594,24.8549,101.92,101.84,156.55]
[1646243912794,24.8549,101.92,101.84,156.8]
[1646243912995,24.8549,101.92,101.84,168.53]
[1646243913196,11.78154154,101.91,101.86,98.3]
[1646243913395,24.8549,101.92,101.86,156.8]
[1646243913596,24.6705,101.94,101.86,156.8]
[1646243913796,170.40120061,101.97,101.86,156.8]
[1646243913997,166.47720061,101.97,101.88,156.55]
[1646243914195,166.47720061,101.97,101.88,0.25]
[1646243914396,10.9632615,101.96,101.89,56.43442805]
[1646243914596,25.6894615,101.96,101.89,56.68442805]
[1646243914798,29.6134615,101.96,101.89,56.43442805]
[1646243915101,29.6134615,101.96,101.87,74.98]
[1646243915102,14.8872615,101.96,101.87,63.25]
[1646243915297,12.70763587,101.96,101.87,0.25]
[1646243915904,12.70763587,101.96,101.86,98.3]
[1646243916102,12.70763587,101.96,101.86,145.0546186]
[1646243917103,14.7292,101.94,101.86,145.0546186]
[1646243917505,14.7292,101.94,101.86,46.7546186]
[1646243917706,12.70763587,101.96,101.86,46.7546186]
[1646243918003,43.42483587,101.96,101.86,46.7546186]
[1646243918203,1.71446396,101.95,101.86,46.7546186]
[1646243918607,14.7322,101.92,101.82,227.80784003]
[1646243918811,14.7322,101.92,101.82,210.5285]
[1646243919004,48.35020381,101.94,101.82,210.5285]
[1646243919228,60.08020381,101.94,101.82,22.7917]
[1646243919432,60.08020381,101.94,101.79,60.19784003]
[1646243919433,1.71446396,101.92,101.79,2.54904003]
[1646243919634,1.71446396,101.92,101.74,146.57]
[1646243919635,0.83642335,101.91,101.78,69.98]
[1646243919829,14.1968312,101.91,101.78,74.98]
[1646243920028,1.71446396,101.9,101.78,75.23]
[1646243920628,14.7396,101.87,101.78,16.73]
[1646243920831,27.86639537,101.87,101.78,5.0]
[1646243921031,16.74301361,101.86,101.74,58.25]
[1646243921329,16.74301361,101.85,101.71,34.7166]
[1646243921530,78.42337257,101.85,101.72,98.3]
[1646243921729,55.56856394,101.84,101.72,51.4765142]
[1646243922029,14.7464,101.82,101.72,66.2216142]
[1646243922430,16.46086396,101.82,101.72,66.2216142]
[1646243922628,16.46086396,101.82,101.72,164.5216142]
[1646243922832,16.46086396,101.82,101.72,222.7716142]
[1646243924330,16.46086396,101.82,101.72,124.4716142]
[1646243924532,16.46086396,101.82,101.72,222.7716142]
[1646243924932,16.46086396,101.82,101.72,223.0216142]
[1646243925133,16.46086396,101.82,101.72,124.7216142]
[1646243925334,1.71446396,101.82,101.71,46.6034]
[1646243925533,3.93,101.81,101.7,149.9561]
[1646243925733,15.66,101.81,101.68,34.2982]
[1646243925936,1.71446396,101.8,101.68,34.2982]
[1646243926132,1.71446396,101.8,101.69,6.0]
[1646243926332,0.83642335,101.79,101.7,142.65931407]
[1646243926732,0.83642335,101.79,101.7,200.90931407]
[1646243926932,0.83642335,101.79,101.7,201.15931407]
[1646243928037,0.83642335,101.79,101.7,117.60851407]
[1646243929634,0.83642335,101.79,101.7,215.90851407]
[1646243930334,16.46486396,101.8,101.7,215.90851407]
[1646243930540,16.46146396,101.82,101.7,253.84277257]
[1646243930834,20.39146396,101.82,101.73,156.55]
[1646243931034,5.64446396,101.82,101.73,171.5449]
[1646243931437,3.93,101.84,101.75,156.55]
[1646243931637,26.69396396,101.85,101.77,156.55]
[1646243931836,24.9795,101.85,101.77,156.8]
[1646243932238,24.9795,101.85,101.77,171.5384]
[1646243932436,8.80596224,101.84,101.78,48.55427152]
[1646243932635,8.80596224,101.84,101.78,48.80427152]
[1646243933236,181.24541976,101.87,101.78,220.09247152]
[1646243933439,181.24541976,101.87,101.78,231.82247152]
[1646243933440,166.50611976,101.87,101.78,231.82247152]
[1646243933636,166.50611976,101.87,101.78,234.37151155]
[1646243934038,166.50611976,101.87,101.8,156.55]
[1646243934235,175.33583917,101.87,101.8,58.5]
[1646243934636,175.33583917,101.87,101.8,156.8]
[1646243935038,8.82971941,101.87,101.81,161.55]
[1646243935238,8.82971941,101.87,101.82,57.37502054]
[1646243935540,8.82971941,101.87,101.82,57.62502054]
[1646243936137,39.6961,101.89,101.82,57.62502054]
[1646243936338,23.4168,101.9,101.82,214.17502054]
[1646243936538,23.41242083,101.93,101.82,225.90502054]
[1646243937139,10.61564001,101.92,101.84,58.25]
[1646243937339,25.34774001,101.92,101.84,0.25]
[1646243937540,52.68616084,101.92,101.84,0.25]
[1646243937741,48.76016084,101.92,101.84,0.25]
[1646243938342,179.16706622,101.95,101.85,156.55]
[1646243938644,154.18964945,101.95,101.87,161.55]
[1646243938844,154.18964945,101.95,101.87,168.53]
[1646243939042,154.18964945,101.95,101.87,70.23]
[1646243939242,11.21392586,101.94,101.87,69.07521574]
[1646243940043,23.41242083,101.95,101.87,232.62521574]
[1646243940344,23.41242083,101.97,101.87,230.62521574]
[1646243940543,70.4599,101.99,101.87,225.62521574]
[1646243940544,3.924,101.98,101.87,225.62521574]
[1646243941143,9.26575684,101.97,101.89,5.0]
[1646243941344,9.26575684,101.97,101.89,183.2524]
[1646243941544,93.87232083,101.99,101.89,183.2524]
[1646243941747,93.87232083,101.99,101.91,5.0]
[1646243941944,93.87232083,101.99,101.91,14.133]
[1646243942145,93.87232083,101.99,101.91,170.683]
[1646243942350,23.41242083,102.01,101.93,58.25]
[1646243942548,34.38840932,102.01,101.94,46.6504028]
[1646243942744,34.38840932,102.01,101.94,51.9004028]
[1646243942946,34.38840932,102.01,101.94,46.9004028]
[1646243943351,186.76502953,102.02,101.94,73.3457028]
[1646243943547,186.76502953,102.02,101.94,78.3457028]
[1646243943949,74.2254,102.04,101.94,78.3457028]
[1646243944150,70.3034,102.04,101.95,6.0]
[1646243944451,244.13256061,102.05,101.96,124.7412]
[1646243944650,244.13256061,102.05,101.96,183.2412]
[1646243944851,406.70740641,102.08,102.01,5.0]
[1646243945049,406.70740641,102.08,102.01,5.25]
[1646243945050,389.87361182,102.08,102.01,5.25]
[1646243945249,389.87361182,102.08,102.02,72.67871863]
[1646243945478,389.87361182,102.08,102.02,72.92871863]
[1646243945854,8.26935265,102.09,102.02,72.92871863]
[1646243946049,8.26935265,102.09,102.02,77.92871863]
[1646243946449,8.26935265,102.09,102.02,5.25]
[1646243946650,31.20808597,102.09,102.02,5.25]
[1646243946951,6.19103357,102.08,102.02,0.25]
[1646243947151,31.20808597,102.09,101.99,0.25]
[1646243947352,37.39911954,102.09,101.99,71.00028213]
[1646243947551,14.7111,102.08,101.99,76.00028213]
[1646243947752,38.77078348,102.09,101.99,16.73]
[1646243947954,38.77078348,102.09,101.99,5.0]
[1646243947955,24.36892339,102.07,101.99,5.0]
[1646243948152,137.26892339,102.07,101.99,5.0]
[1646243948357,24.42671423,102.06,101.99,5.0]
[1646243948753,34.16434181,102.05,101.99,5.0]
[1646243949155,22.93873332,102.04,101.99,5.0]
[1646243949354,29.12976689,102.04,101.99,5.0]
[1646243949554,1.71018672,102.03,101.96,52.80981581]
[1646243949754,1.71018672,102.03,101.96,57.80981581]
[1646243949956,7.90122029,102.03,101.96,58.05981581]
[1646243950155,7.90122029,102.03,101.96,57.80981581]
[1646243950357,1.71018672,102.02,101.96,57.80981581]
[1646243950555,8.26935265,102.01,101.96,57.80981581]
[1646243951155,8.26935265,102.01,101.96,52.80981581]
[1646243951557,8.26935265,102.01,101.96,53.05981581]
[1646243951755,8.26935265,102.01,101.96,0.25]
[1646243951958,8.26935265,102.01,101.94,16.98]
[1646243952856,9.97953937,102.01,101.94,16.98]
[1646243953957,9.97953937,102.01,101.94,5.25]
[1646243954159,9.97953937,102.01,101.94,5.0]
[1646243955259,3.922,102.02,101.94,63.25]
[1646243955459,14.7179,102.03,101.94,75.23]
[1646243956262,9.14604493,102.02,101.94,16.98]
[1646243956660,1.71018672,102.01,101.94,5.25]
[1646243956862,9.14604493,102.02,101.94,5.25]
[1646243957462,10.85623165,102.02,101.94,5.25]
[1646243957864,29.49713165,102.02,101.94,5.25]
[1646243958062,25.57513165,102.02,101.94,5.25]
[1646243958869,29.59949856,102.02,101.94,5.25]
[1646243959266,31.25063088,102.02,101.94,5.25]
[1646243959466,29.59949856,102.02,101.94,5.25]
[1646243960689,25.57513165,102.02,101.94,5.25]
[1646243961190,4.02436691,102.04,101.94,176.5144]
[1646243961392,26.85646325,102.05,101.96,58.25]
[1646243961393,1.70591665,102.05,101.96,58.25]
[1646243961589,74.25186691,102.06,101.96,70.23]
[1646243961790,71.93341665,102.06,101.96,70.23]
[1646243962089,14.7157,102.04,101.96,55.07638789]
[1646243962289,14.7157,102.04,101.96,0.25]
[1646243962489,1.70591665,102.03,101.96,0.25]
[1646243962689,1.70591665,102.03,101.95,6.25]
[1646243962889,1.70591665,102.03,101.95,0.25]
[1646243963089,22.93446325,102.03,101.94,0.25]
[1646243963289,4.02436691,102.02,101.93,0.25]
[1646243963489,5.73028356,102.02,101.93,5.0]
[1646243963689,1.70591665,102.01,101.93,5.25]
[1646243964290,2.77498303,102.0,101.94,49.59078005]
[1646243964490,1.70591665,102.01,101.94,49.84078005]
[1646243964693,1.70591665,102.03,101.94,49.84078005]
[1646243964890,1.70591665,102.03,101.94,221.10638005]
[1646243965092,39.1991,102.04,101.94,232.83638005]
[1646243965589,39.1991,102.04,101.95,6.0]
[1646243965790,29.38746232,102.05,101.96,168.28]
[1646243966092,248.78312053,102.07,101.98,156.55]
[1646243966290,135.88312053,102.07,101.98,168.53]
[1646243966891,147.23492527,102.07,101.99,101.56327646]
[1646243967090,147.23492527,102.07,101.99,116.52177646]
[1646243967492,147.23492527,102.07,101.99,121.52177646]
[1646243967690,145.52900862,102.07,101.99,121.52177646]
[1646243967892,11.35180474,102.07,101.99,121.52177646]
[1646243970498,11.35180474,102.07,101.99,133.25177646]
[1646243970894,11.35180474,102.07,101.99,75.00177646]
[1646243971096,11.35180474,102.07,102.0,6.0]
[1646243971397,15.34592498,102.07,101.99,38.55717046]
[1646243972199,15.34592498,102.07,101.99,23.59867046]
[1646243972200,15.59592498,102.07,101.99,23.59867046]
[1646243972396,15.59592498,102.07,101.99,18.59867046]
[1646243972797,17.30184163,102.07,101.99,18.59867046]
[1646243973498,25.16248611,102.05,101.99,18.59867046]
[1646243973698,1.95591665,102.07,101.99,18.84867046]
[1646243974600,53.03362024,102.09,102.0,6.0]
[1646243974601,3.99412024,102.09,102.0,6.0]
[1646243974798,45.71496325,102.1,102.01,72.54387243]
[1646243974998,24.48641665,102.1,102.01,72.79387243]
[1646243975400,24.48641665,102.1,102.02,6.0]
[1646243975601,28.65127022,102.1,102.02,6.25]
[1646243975802,58.68034935,102.1,102.03,51.99753672]
[1646243976002,71.9312327,102.1,102.03,52.24753672]
[1646243977010,71.6812327,102.1,102.03,52.24753672]
[1646243977909,73.38714935,102.1,102.03,52.24753672]
[1646243978108,94.74089595,102.1,102.03,52.24753672]
[1646243978311,94.74089595,102.1,102.0,14.7068]
[1646243978507,94.74089595,102.1,102.0,19.7068]
[1646243978710,3.919,102.09,101.93,96.0832]
[1646243978908,14.7137,102.05,101.96,59.214]
[1646243979108,14.7137,102.05,101.96,11.73]
[1646243979309,6.48521172,102.04,101.97,54.41898855]
[1646243979512,8.19112837,102.04,101.97,54.41898855]
[1646243980110,8.44112837,102.04,101.97,54.41898855]
[1646243980610,1.70591665,102.03,101.97,49.41898855]
[1646243980812,28.4802809,102.02,101.97,49.41898855]
[1646243981210,28.4802809,102.02,101.95,19.7152]
[1646243981413,30.18619755,102.02,101.95,14.7152]
[1646243981613,30.18619755,102.02,101.95,0.25]
[1646243981811,30.18619755,102.02,101.94,6.0]
[1646243982015,30.18619755,102.02,101.93,5.0]
[1646243982211,30.18619755,102.02,101.93,64.83093049]
[1646243982420,30.18619755,102.02,101.93,50.11393049]
[1646243982611,53.01057539,102.02,101.93,50.11393049]
[1646243982811,57.17542896,102.02,101.93,50.11393049]
[1646243983717,14.7189,102.01,101.93,50.11393049]
[1646243983918,8.03400995,102.0,101.93,50.11393049]
[1646243984721,9.7399266,102.0,101.93,50.11393049]
[1646243984921,9.7399266,102.0,101.93,45.11393049]
[1646243985120,24.4603266,102.0,101.93,0.25]
[1646243985324,24.4603266,102.0,101.92,14.9695]
[1646243985822,24.4603266,102.0,101.92,14.7195]
[1646243986028,24.4603266,102.0,101.91,8.922]
[1646243986222,37.87860859,102.0,101.91,8.922]
[1646243986423,31.4667735,101.99,101.91,3.922]
[1646243986622,14.7257,101.97,101.91,3.922]
[1646243986850,14.9757,101.97,101.91,3.922]
[1646243987253,28.4802809,101.96,101.88,92.52932414]
[1646243987445,28.4802809,101.96,101.88,107.25382414]
[1646243987645,28.4802809,101.96,101.88,107.50382414]
[1646243987847,28.4802809,101.96,101.88,107.25382414]
[1646243988050,28.4802809,101.96,101.88,58.33722414]
[1646243989050,1.70579452,101.95,101.88,43.61272414]
[1646243989249,8.03400995,101.94,101.88,0.25]
[1646243989452,8.03400995,101.94,101.87,0.25]
[1646243989655,1.70579452,101.93,101.86,0.25]
[1646243989850,1.70579452,101.93,101.85,0.25]
[1646243990151,1.70579452,101.93,101.83,5.0]
[1646243990349,28.4802809,101.92,101.84,48.26099228]
[1646243990550,28.4802809,101.92,101.84,48.51099228]
[1646243991149,43.2121809,101.92,101.84,63.24099228]
[1646243991555,43.2121809,101.92,101.84,67.99099228]
[1646243993050,43.2121809,101.92,101.84,68.24099228]
[1646243993851,43.2121809,101.92,101.84,63.24099228]
[1646243994052,1.70579452,101.91,101.84,5.25]
[1646243994352,1.70579452,101.91,101.82,82.7555]
[1646243994551,1.70579452,101.91,101.8,22.7085]
[1646243994552,25.08471445,101.91,101.8,22.7085]
[1646243994755,38.31305013,101.91,101.78,11.73]
[1646243994953,60.6039941,101.9,101.8,58.79785083]
[1646243995155,3.927,101.89,101.8,58.79785083]
[1646243995354,28.4802809,101.88,101.8,5.0]
[1646243995554,30.18607542,101.88,101.8,5.0]
[1646243996154,30.43607542,101.88,101.8,0.25]
[1646243996353,30.43607542,101.88,101.8,45.21543106]
[1646243996553,30.43607542,101.88,101.8,45.46543106]
[1646243997154,45.17387542,101.88,101.8,45.46543106]
[1646243997653,45.17387542,101.88,101.8,45.21543106]
[1646243997654,53.81499535,101.88,101.8,45.21543106]
[1646243997858,1.70579452,101.87,101.8,45.21543106]
[1646243998053,8.03400995,101.86,101.8,45.21543106]
[1646243998854,8.03400995,101.86,101.8,0.25]
[1646243999055,8.03400995,101.86,101.78,6.0]
[1646243999254,8.03400995,101.86,101.78,0.25]
[1646243999855,22.5694,101.88,101.78,121.45711355]
[1646244000059,22.5694,101.88,101.79,64.25]
[1646244000256,22.5694,101.88,101.79,76.23]
[1646244000759,23.37891993,101.9,101.8,104.07729898]
[1646244001057,4.37842292,101.89,101.81,5.0]
[1646244001257,23.37891993,101.9,101.82,57.39751973]
[1646244001456,22.78853283,101.91,101.82,57.64751973]